fUSD/lending_fUSD_20260608
["ID","MTS","AMOUNT","RATE_DAILY","PERIOD"]
[424422287,1780867841000,-244.641141,0.00014945,2]
[424422309,1780867841000,-500.0,0.00014999,2]
[424422343,1780867841000,-500.0,0.00014999,2]
[424422271,1780867841000,-500.0,0.000149,2]
[424422272,1780867841000,-500.0,0.000149,2]
[424422270,1780867841000,-500.0,0.000149,2]
[424422274,1780867841000,-500.0,0.000149,2]
[424422273,1780867841000,-500.0,0.000149,2]
[424422276,1780867841000,-500.0,0.000149,2]
[424422277,1780867841000,-151.0,0.000149,2]
[424422275,1780867841000,-500.0,0.000149,2]
[424422278,1780867841000,-500.0,0.000149,2]
[424422279,1780867841000,-500.0,0.000149,2]
[424422281,1780867841000,-500.0,0.000149,2]
[424422283,1780867841000,-500.0,0.000149,2]
[424422280,1780867841000,-500.0,0.000149,2]
[424422282,1780867841000,-500.0,0.000149,2]
[424422284,1780867841000,-500.0,0.000149,2]
[424422292,1780867841000,-150.0,0.00014986,2]
[424422289,1780867841000,-150.0,0.00014986,2]
[424422301,1780867841000,-3779.70425044,0.00014989,3]
[424422285,1780867841000,-500.0,0.000149,2]
[424422297,1780867841000,-120967.63391002,0.00014989,2]
[424422299,1780867841000,-4652.61522546,0.00014989,3]
[424422305,1780867841000,-500.0,0.00014999,2]
[424422295,1780867841000,-500.0,0.00014988,2]
[424422303,1780867841000,-1859.0384247,0.0001499,2]
[424422306,1780867841000,-500.0,0.00014999,2]
[424422307,1780867841000,-151.0,0.00014999,2]
[424422310,1780867841000,-500.0,0.00014999,2]
[424422340,1780867841000,-500.0,0.00014999,2]
[424422294,1780867841000,-150.0,0.00014986,2]
[424422341,1780867841000,-500.0,0.00014999,2]
[424422382,1780867841000,-500.0,0.00014999,2]
[424422377,1780867841000,-500.0,0.00014999,2]
[424422387,1780867841000,-500.0,0.00014999,2]
[424422384,1780867841000,-500.0,0.00014999,2]
[424422381,1780867841000,-500.0,0.00014999,2]
[424422391,1780867841000,-300.0,0.00014999,2]
[424422390,1780867841000,-666.0,0.00014999,2]
[424422393,1780867841000,-300.0,0.00014999,2]
[424422397,1780867841000,-1641.48,0.00015,2]
[424422392,1780867841000,-666.0,0.00014999,2]
[424422396,1780867841000,-7650.93155104,0.00015,2]
[424422394,1780867841000,-666.0,0.00014999,2]
[424422402,1780867841000,-1485.67,0.00015,2]
[424422401,1780867841000,-182.36,0.00015,2]
[424422395,1780867841000,-6878.54702717,0.00015,2]
[424422399,1780867841000,-410.37,0.00015,2]
[424422400,1780867841000,-273.54,0.00015,2]
[424422411,1780867841000,-14357522.579008,0.00015,2]
[424422406,1780867841000,-368.38,0.00015,2]
[424422408,1780867841000,-183.95,0.00015,2]
[424422407,1780867841000,-221.04,0.00015,2]
[424422405,1780867841000,-884.12,0.00015,2]
[424422404,1780867841000,-371.42,0.00015,2]
[424422403,1780867841000,-619.03,0.00015,2]
[424422410,1780867841000,-50000.0,0.00015,2]
[424422409,1780867841000,-260.04,0.00015,2]
[424422338,1780867841000,-500.0,0.00014999,2]
[424422389,1780867841000,-300.0,0.00014999,2]
[424422383,1780867841000,-500.0,0.00014999,2]
[424422398,1780867841000,-683.95,0.00015,2]
[424422378,1780867841000,-500.0,0.00014999,2]
[424422388,1780867841000,-500.0,0.00014999,2]
[424422349,1780867841000,-500.0,0.00014999,2]
[424422345,1780867841000,-500.0,0.00014999,2]
[424422351,1780867841000,-500.0,0.00014999,2]
[424422365,1780867841000,-500.0,0.00014999,2]
[424422363,1780867841000,-500.0,0.00014999,2]
[424422366,1780867841000,-500.0,0.00014999,2]
[424422353,1780867841000,-500.0,0.00014999,2]
[424422354,1780867841000,-500.0,0.00014999,2]
[424422356,1780867841000,-500.0,0.00014999,2]
[424422350,1780867841000,-500.0,0.00014999,2]
[424422355,1780867841000,-500.0,0.00014999,2]
[424422357,1780867841000,-500.0,0.00014999,2]
[424422348,1780867841000,-2000.0,0.00014999,2]
[424422360,1780867841000,-500.0,0.00014999,2]
[424422386,1780867841000,-500.0,0.00014999,2]
[424422385,1780867841000,-500.0,0.00014999,2]
[424422380,1780867841000,-500.0,0.00014999,2]
[424422352,1780867841000,-500.0,0.00014999,2]
[424422376,1780867841000,-500.0,0.00014999,2]
[424422374,1780867841000,-500.0,0.00014999,2]
[424422379,1780867841000,-500.0,0.00014999,2]
[424422371,1780867841000,-500.0,0.00014999,2]
[424422373,1780867841000,-500.0,0.00014999,2]
[424422368,1780867841000,-500.0,0.00014999,2]
[424422372,1780867841000,-500.0,0.00014999,2]
[424422358,1780867841000,-500.0,0.00014999,2]
[424422375,1780867841000,-500.0,0.00014999,2]
[424422417,1780867842000,-110.5673967,0.000149,2]
[424422413,1780867842000,-8766.31781024,0.00015,2]
[424422412,1780867842000,-500.0,0.000149,2]
[424422414,1780867842000,-1846.9,0.00015,2]
[424422415,1780867842000,-215.782023,0.00013987,2]
[424422416,1780867842000,-129.470977,0.000149,2]
[424422419,1780867842000,-110.5673967,0.000149,2]
[424422418,1780867842000,-389.4326033,0.000149,2]
[424422423,1780867842000,-500.0,0.000149,2]
[424422420,1780867842000,-500.0,0.000149,2]
[424422422,1780867842000,-229.84771808,0.000149,2]
[424422424,1780867842000,-500.0,0.000149,2]
[424422426,1780867842000,-2463.66428051,0.00015,2]
[424422427,1780867842000,-500.0,0.000149,2]
[424422428,1780867842000,-2755.0,0.00015,2]
[424422425,1780867842000,-33617.08060866,0.00015,2]
[424422421,1780867842000,-270.15228192,0.000149,2]
[424422441,1780867843000,-155.6742,0.000149,2]
[424422443,1780867843000,-410.8908,0.000149,2]
[424422445,1780867843000,-370.16623321,0.000149,2]
[424422442,1780867843000,-344.3258,0.000149,2]
[424422444,1780867843000,-89.1092,0.000149,2]
[424422440,1780867843000,-500.0,0.000149,2]
[424422488,1780867847000,-129.83376679,0.000149,2]
[424422487,1780867847000,-191.131665,0.00014057,2]
[424422490,1780867847000,-500.0,0.000149,2]
[424422491,1780867847000,-343.406116,0.000149,2]
[424422492,1780867847000,-6782.6999625,0.00014985,2]
[424422493,1780867847000,-31788.24030082,0.00015,2]
[424422494,1780867847000,-654308.28209231,0.00015,2]
[424422489,1780867847000,-500.0,0.000149,2]
[424422507,1780868740000,1000.0,0.00029452,120]
[424422521,1780869031000,-187.04,0.00012259,2]
[424422523,1780869031000,-824.4,0.00012302,2]
[424422522,1780869031000,-242.87,0.0001227,2]
[424422527,1780869031000,-168.7,0.00012597,2]
[424422524,1780869031000,-158.27,0.00012403,2]
[424422525,1780869031000,-58.67,0.000125,4]
[424422526,1780869031000,-741.33,0.000125,4]
[424422528,1780869031000,-1700.0,0.000126,4]
[424422534,1780869031000,-52378.33856819,0.00012805,2]
[424422531,1780869031000,-150.0,0.00012804,2]
[424422530,1780869031000,-3500.0,0.000128,4]
[424422533,1780869031000,-824875.84409719,0.00012805,2]
[424422532,1780869031000,-2500.0,0.00012805,2]
[424422535,1780869031000,-3568.32269673,0.00012805,2]
[424422536,1780869031000,-777.05845244,0.00012805,2]
[424422537,1780869031000,-3667.98258065,0.00012805,2]
[424422529,1780869031000,-2600.0,0.000127,4]
[424422572,1780869037000,-320.45676065,0.00012804,2]
[424422573,1780869037000,-338.66315444,0.00012804,2]
[424422575,1780869037000,-284.75839435,0.00012804,2]
[424422574,1780869037000,-500.0,0.00012804,2]
[424422579,1780869037000,-500.0,0.00012804,2]
[424422580,1780869037000,-500.0,0.00012804,2]
[424422577,1780869037000,-293.21377232,0.00012804,2]
[424422578,1780869037000,-500.0,0.00012804,2]
[424422576,1780869037000,-500.0,0.00012804,2]
[424422581,1780869037000,-261.62391947,0.00012804,2]
[424422582,1780869037000,-238.37608053,0.00012804,2]
[424422583,1780869037000,-66.27270986,0.00012804,2]
[424422829,1780869039000,-213.20495945,0.00012804,2]
[424422827,1780869039000,-383.09304055,0.00012804,2]
[424422840,1780869040000,-500.0,0.00012804,2]
[424422842,1780869040000,-500.0,0.00012804,2]
[424422844,1780869040000,-500.0,0.00012804,2]
[424422846,1780869040000,-500.0,0.00012804,2]
[424422837,1780869040000,-286.79504055,0.00012804,2]
[424422838,1780869040000,-500.0,0.00012804,2]
[424422852,1780869040000,-100.91635715,0.00012804,2]
[424422861,1780869040000,-15470.07167704,0.00012805,2]
[424422856,1780869040000,-300.08079135,0.00012804,2]
[424422858,1780869040000,-3.2131883,0.00012805,2]
[424422854,1780869040000,-224.20256477,0.00012804,2]
[424422848,1780869040000,-399.08364285,0.00012804,2]
[424422916,1780869040000,-52722.48180908,0.00012805,2]
[424423537,1780869045000,-648.3197,0.00012805,2]
[424423540,1780869050000,152.0,0.00029953,120]
[424423541,1780869753000,1000.0,0.00030136,120]
[424423542,1780869778000,1000.0,0.00030136,120]
[424423560,1780870231000,-375.2,0.00012392,2]
[424423561,1780870231000,-166.66,0.00012577,2]
[424423558,1780870231000,-187.04,0.00012038,2]
[424423555,1780870231000,-1569.84,0.00011975,2]
[424423557,1780870231000,-1047.6,0.00012026,2]
[424423554,1780870231000,-434.28,0.00011975,2]
[424423556,1780870231000,-150.0,0.00012005,2]
[424423553,1780870231000,-183.64,0.00011975,2]
[424423552,1780870231000,-479.0,0.00011975,2]
[424423562,1780870231000,-150.0,0.00012603,2]
[424423559,1780870231000,-292.41,0.00012069,2]
[424423564,1780870231000,-500.0,0.00012604,2]
[424423578,1780870231000,-639.62824233,0.00012604,2]
[424423568,1780870231000,-224.31973246,0.00012604,2]
[424423567,1780870231000,-500.0,0.00012604,2]
[424423582,1780870231000,-326.90548362,0.00012604,2]
[424423581,1780870231000,-500.0,0.00012604,2]
[424423579,1780870231000,-302.06576711,0.00012604,2]
[424423580,1780870231000,-501.97721037,0.00012604,2]
[424423584,1780870231000,-322.74076882,0.00012604,2]
[424423572,1780870231000,-500.0,0.00012604,2]
[424423565,1780870231000,-500.0,0.00012604,2]
[424423574,1780870231000,-254.34821278,0.00012604,2]
[424423563,1780870231000,-500.0,0.00012604,2]
[424423576,1780870231000,-500.0,0.00012604,2]
[424423570,1780870231000,-500.0,0.00012604,2]
[424423604,1780870232000,-500.0,0.00012604,2]
[424423610,1780870232000,-500.0,0.00012604,2]
[424423611,1780870232000,-500.0,0.00012604,2]
[424423612,1780870232000,-500.0,0.00012604,2]
[424423613,1780870232000,-500.0,0.00012604,2]
[424423607,1780870232000,-500.0,0.00012604,2]
[424423608,1780870232000,-500.0,0.00012604,2]
[424423609,1780870232000,-500.0,0.00012604,2]
[424423606,1780870232000,-500.0,0.00012604,2]
[424423605,1780870232000,-500.0,0.00012604,2]
[424423590,1780870232000,-500.0,0.00012604,2]
[424423603,1780870232000,-500.0,0.00012604,2]
[424423602,1780870232000,-500.0,0.00012604,2]
[424423599,1780870232000,-500.0,0.00012604,2]
[424423592,1780870232000,-500.0,0.00012604,2]
[424423594,1780870232000,-500.0,0.00012604,2]
[424423597,1780870232000,-500.0,0.00012604,2]
[424423596,1780870232000,-500.0,0.00012604,2]
[424423588,1780870232000,-500.0,0.00012604,2]
[424423586,1780870232000,-500.0,0.00012604,2]
[424423615,1780870232000,-500.0,0.00012604,2]
[424423601,1780870232000,-500.0,0.00012604,2]
[424423614,1780870232000,-500.0,0.00012604,2]
[424423625,1780870232000,-500.0,0.00012604,2]
[424423619,1780870232000,-500.0,0.00012604,2]
[424423631,1780870232000,-295.96391324,0.00012604,2]
[424423638,1780870232000,-5285.34448542,0.00012605,2]
[424423636,1780870232000,-7476.34751702,0.00012604,2]
[424423637,1780870232000,-499.5654,0.00012605,2]
[424423639,1780870232000,-35245.1138603,0.00012605,2]
[424423635,1780870232000,-500.0,0.00012604,2]
[424423633,1780870232000,-500.0,0.00012604,2]
[424423632,1780870232000,-500.0,0.00012604,2]
[424423630,1780870232000,-430.03492752,0.00012604,2]
[424423629,1780870232000,-344.91230688,0.00012604,2]
[424423634,1780870232000,-500.0,0.00012604,2]
[424423628,1780870232000,-500.0,0.00012604,2]
[424423622,1780870232000,-500.0,0.00012604,2]
[424423627,1780870232000,-500.0,0.00012604,2]
[424423618,1780870232000,-500.0,0.00012604,2]
[424423626,1780870232000,-500.0,0.00012604,2]
[424423623,1780870232000,-485.77626082,0.00012604,2]
[424423620,1780870232000,-155.08769312,0.00012604,2]
[424423621,1780870232000,-500.0,0.00012604,2]
[424423640,1780870232000,-496.2484482,0.00012605,2]
[424423624,1780870232000,-500.0,0.00012604,2]
[424423617,1780870232000,-500.0,0.00012604,2]
[424423616,1780870232000,-500.0,0.00012604,2]
[424423646,1780870237000,-373.20385252,0.00012605,2]
[424423645,1780870237000,-7486.30571905,0.00012605,2]
[424423657,1780870239000,-396.71618048,0.00012605,2]
[424423659,1780870240000,-674.12308737,0.00012605,2]
[424423660,1780870240000,-410.09470682,0.00012605,2]
[424423658,1780870240000,-406.5945204,0.00012605,2]
[424423671,1780870242000,-6661.1509751,0.00012605,2]
[424423672,1780870242000,-661.03999474,0.00012605,2]
[424423673,1780870243000,-705.76657979,0.00012605,2]
[424423674,1780870243000,-371.28,0.00012605,2]
[424423678,1780870245000,-3573.36317695,0.00012605,2]
[424423679,1780870330000,152.0,0.00029724,120]
[424423692,1780870839000,852.0,0.00030137,120]
[424423693,1780870881000,166.37,0.00024,120]
[424423694,1780870911000,-258.08549614,0.000114,2]
[424423698,1780870911000,-637.12,0.00011768,2]
[424423697,1780870911000,-2370.89880922,0.00011758,2]
[424423696,1780870911000,-820.93,0.00011703,2]
[424423699,1780870911000,-500.5236456,0.00011768,2]
[424423701,1780870911000,-500.0,0.000119,2]
[424423695,1780870911000,-175.51064109,0.00011668,2]
[424423704,1780870911000,-262.0,0.00011992,2]
[424423702,1780870911000,-150.0,0.00011925,2]
[424423703,1780870911000,-252.5368803,0.0001195,2]
[424423705,1780870911000,-151.0,0.00012,2]
[424423707,1780870911000,-158.27,0.00012088,2]
[424423706,1780870911000,-175.51064107,0.00012037,2]
[424423700,1780870911000,-150.0,0.00011875,2]
[424423710,1780870912000,-7267.48766817,0.00012405,2]
[424423711,1780870912000,-1673.60621841,0.00012405,2]
[424423709,1780870912000,-150.0,0.00012404,2]
[424423708,1780870912000,-1246.52,0.00012254,2]
[424423716,1780871086000,312.66,0.00030082,120]
[424423717,1780871093000,208.0,0.00030136,120]
[424423752,1780871431000,-486.0,0.00011699,2]
[424423742,1780871431000,-199.25,9.554e-05,2]
[424423754,1780871431000,-279.1725733,0.00011914,2]
[424423756,1780871431000,-545.56369431,0.00012052,2]
[424423747,1780871431000,-150.0,0.00010774,2]
[424423750,1780871431000,-164.95,0.00011672,2]
[424423749,1780871431000,-500.0,0.00011425,2]
[424423761,1780871431000,-242.97074408,0.00012094,2]
[424423744,1780871431000,-250.0,0.00010509,2]
[424423762,1780871431000,-622.07925592,0.00012094,2]
[424423764,1780871431000,-163.62,0.00012254,2]
[424423763,1780871431000,-997.216,0.00012254,2]
[424423768,1780871431000,-500.0,0.00012449,2]
[424423767,1780871431000,-197.3092755,0.00012405,2]
[424423765,1780871431000,-312.66,0.00012329,2]
[424423760,1780871431000,-292.51630569,0.00012052,2]
[424423766,1780871431000,-727.63417524,0.00012405,2]
[424423769,1780871431000,-150.0,0.00012449,2]
[424423770,1780871431000,-197460.80663773,0.0001245,2]
[424423780,1780871432000,-500.0,0.00012503,2]
[424423784,1780871432000,-489.75002512,0.00012505,2]
[424423786,1780871432000,-567.0,0.00012575,2]
[424423782,1780871432000,-500.0,0.00012503,2]
[424423776,1780871432000,-500.0,0.00012503,2]
[424423772,1780871432000,-11755.10499993,0.0001245,2]
[424423773,1780871432000,-34527.9014044,0.0001245,2]
[424423774,1780871432000,-1210.4973719,0.0001245,2]
[424423771,1780871432000,-25260.40780264,0.0001245,2]
[424423779,1780871432000,-500.0,0.00012503,2]
[424423775,1780871432000,-500.0,0.00012503,2]
[424423778,1780871432000,-500.0,0.00012503,2]
[424423777,1780871432000,-500.0,0.00012503,2]
[424423803,1780871432000,-500.0,0.00012604,2]
[424423781,1780871432000,-500.0,0.00012503,2]
[424423807,1780871432000,-465.80831375,0.00012604,2]
[424423810,1780871432000,-114256.72796633,0.00012605,2]
[424423809,1780871432000,-1022.3344317,0.00012605,2]
[424423799,1780871432000,-641.44165507,0.00012604,2]
[424423797,1780871432000,-500.0,0.00012604,2]
[424423795,1780871432000,-500.0,0.00012604,2]
[424423792,1780871432000,-500.0,0.00012604,2]
[424423788,1780871432000,-400.0,0.000126,4]
[424423801,1780871432000,-500.0,0.00012604,2]
[424423805,1780871432000,-500.0,0.00012604,2]
[424423790,1780871432000,-151.0,0.00012602,2]
[424423833,1780871437000,-9334.49498764,0.00012505,2]
[424423831,1780871437000,-175.51064107,0.00011814,2]
[424423832,1780871437000,-3307.72809393,0.00012505,2]
[424423859,1780871439000,-150.0,0.00013488,2]
[424423863,1780871439000,-150.0,0.00013488,2]
[424423856,1780871439000,-27126.82,0.00013452,2]
[424423858,1780871439000,-150.0,0.00013488,2]
[424423860,1780871439000,-150.0,0.00013488,2]
[424423862,1780871439000,-150.0,0.00013488,2]
[424423861,1780871439000,-150.0,0.00013488,2]
[424423865,1780871439000,-151.41923818,0.00013488,2]
[424423872,1780871439000,-838.08,0.00013558,2]
[424423866,1780871439000,-150.0,0.00013488,2]
[424423867,1780871439000,-203.77673036,0.00013488,2]
[424423868,1780871439000,-150.0,0.00013488,2]
[424423869,1780871439000,-150.0,0.00013488,2]
[424423870,1780871439000,-449.64560277,0.00013537,2]
[424423873,1780871439000,-150.0,0.00013588,2]
[424423871,1780871439000,-255.0,0.00013545,2]
[424423855,1780871439000,-727.63417523,0.00013237,2]
[424423864,1780871439000,-169.15934622,0.00013488,2]
[424423854,1780871439000,-215.83393831,0.00013217,2]
[424423834,1780871439000,-7505.8007136,0.00012505,2]
[424423853,1780871439000,-250.0,0.000132,2]
[424423875,1780871439000,-10000.0,0.00013598,2]
[424423836,1780871439000,-9458.83763707,0.00012605,2]
[424423837,1780871439000,-135458.8672661,0.00012605,2]
[424423835,1780871439000,-17479.53764699,0.00012505,2]
[424423838,1780871439000,-5187.4612857,0.00012605,2]
[424423840,1780871439000,-1400.0,0.000128,4]
[424423845,1780871439000,-177.88177692,0.00012805,2]
[424423843,1780871439000,-150.56478136,0.00012805,2]
[424423852,1780871439000,-2000.0,0.000132,2]
[424423844,1780871439000,-186.18115721,0.00012805,2]
[424423839,1780871439000,-900.0,0.000127,4]
[424423842,1780871439000,-151.0,0.00012805,2]
[424423846,1780871439000,-449.64560277,0.00012805,2]
[424423847,1780871439000,-727.63417523,0.00012821,2]
[424423848,1780871439000,-1800.0,0.000129,4]
[424423850,1780871439000,-54825.46965778,0.00013005,2]
[424423849,1780871439000,-186.22499167,0.00013005,2]
[424423851,1780871439000,-163.85532209,0.00013189,2]
[424423841,1780871439000,-186.18115721,0.00012805,2]
[424423874,1780871439000,-500.0,0.00013598,2]
[424423900,1780871439000,-500.0,0.00013698,2]
[424423877,1780871439000,-727.63417523,0.00013653,2]
[424423898,1780871439000,-500.0,0.00013698,2]
[424423902,1780871439000,-500.0,0.00013698,2]
[424423901,1780871439000,-500.0,0.00013698,2]
[424423903,1780871439000,-500.0,0.00013698,2]
[424423905,1780871439000,-500.0,0.00013698,2]
[424423906,1780871439000,-500.0,0.00013698,2]
[424423909,1780871439000,-500.0,0.00013698,2]
[424423908,1780871439000,-500.0,0.00013698,2]
[424423897,1780871439000,-500.0,0.00013698,2]
[424423912,1780871439000,-500.0,0.00013698,2]
[424423914,1780871439000,-500.0,0.00013698,2]
[424423911,1780871439000,-500.0,0.00013698,2]
[424423913,1780871439000,-500.0,0.00013698,2]
[424423918,1780871439000,-500.0,0.00013698,2]
[424423917,1780871439000,-500.0,0.00013698,2]
[424423919,1780871439000,-500.0,0.00013698,2]
[424423920,1780871439000,-500.0,0.00013698,2]
[424423876,1780871439000,-150.0,0.00013624,2]
[424423910,1780871439000,-500.0,0.00013698,2]
[424423896,1780871439000,-500.0,0.00013698,2]
[424423916,1780871439000,-500.0,0.00013698,2]
[424423880,1780871439000,-1272.0,0.00013668,5]
[424423886,1780871439000,-500.0,0.00013698,2]
[424423879,1780871439000,-1378.0,0.00013668,5]
[424423878,1780871439000,-197.30927549,0.00013653,2]
[424423884,1780871439000,-500.0,0.00013698,2]
[424423885,1780871439000,-500.0,0.00013698,2]
[424423883,1780871439000,-151.0,0.00013695,2]
[424423882,1780871439000,-150.0,0.00013687,2]
[424423887,1780871439000,-500.0,0.00013698,2]
[424423881,1780871439000,-150.56478136,0.00013683,2]
[424423891,1780871439000,-577.88976382,0.00013698,2]
[424423889,1780871439000,-500.0,0.00013698,2]
[424423890,1780871439000,-500.0,0.00013698,2]
[424423893,1780871439000,-500.0,0.00013698,2]
[424423892,1780871439000,-500.0,0.00013698,2]
[424423894,1780871439000,-500.0,0.00013698,2]
[424423895,1780871439000,-500.0,0.00013698,2]
[424423888,1780871439000,-500.0,0.00013698,2]
[424423899,1780871439000,-500.0,0.00013698,2]
[424423962,1780871440000,-500.0,0.00013698,2]
[424423964,1780871440000,-500.0,0.00013698,2]
[424423969,1780871440000,-500.0,0.00013698,2]
[424423967,1780871440000,-500.0,0.00013698,2]
[424423968,1780871440000,-500.0,0.00013698,2]
[424423983,1780871440000,-500.0,0.00013698,2]
[424423960,1780871440000,-916.51,0.00013698,2]
[424423958,1780871440000,-916.51,0.00013698,2]
[424423959,1780871440000,-916.51,0.00013698,2]
[424423957,1780871440000,-916.51,0.00013698,2]
[424423956,1780871440000,-916.51,0.00013698,2]
[424423965,1780871440000,-500.0,0.00013698,2]
[424423948,1780871440000,-500.0,0.00013698,2]
[424423961,1780871440000,-500.0,0.00013698,2]
[424423966,1780871440000,-556.72552336,0.00013698,2]
[424423977,1780871440000,-500.0,0.00013698,2]
[424423971,1780871440000,-500.43121743,0.00013698,2]
[424423970,1780871440000,-500.0,0.00013698,2]
[424423972,1780871440000,-500.0,0.00013698,2]
[424423973,1780871440000,-500.0,0.00013698,2]
[424423974,1780871440000,-500.0,0.00013698,2]
[424423975,1780871440000,-500.0,0.00013698,2]
[424423976,1780871440000,-500.0,0.00013698,2]
[424423979,1780871440000,-500.0,0.00013698,2]
[424423978,1780871440000,-500.0,0.00013698,2]
[424423980,1780871440000,-396.87484801,0.00013698,2]
[424423981,1780871440000,-322.28290153,0.00013698,2]
[424423986,1780871440000,-500.0,0.00013698,2]
[424423954,1780871440000,-916.51,0.00013698,2]
[424423963,1780871440000,-500.0,0.00013698,2]
[424423953,1780871440000,-916.51,0.00013698,2]
[424423930,1780871440000,-500.0,0.00013698,2]
[424423955,1780871440000,-916.51,0.00013698,2]
[424423985,1780871440000,-500.0,0.00013698,2]
[424423921,1780871440000,-500.0,0.00013698,2]
[424423923,1780871440000,-217.89304475,0.00013698,2]
[424423922,1780871440000,-500.0,0.00013698,2]
[424423924,1780871440000,-500.0,0.00013698,2]
[424423925,1780871440000,-237.69358717,0.00013698,2]
[424423926,1780871440000,-500.0,0.00013698,2]
[424423929,1780871440000,-500.0,0.00013698,2]
[424423928,1780871440000,-500.0,0.00013698,2]
[424423927,1780871440000,-500.0,0.00013698,2]
[424423931,1780871440000,-500.0,0.00013698,2]
[424423932,1780871440000,-500.0,0.00013698,2]
[424423934,1780871440000,-500.0,0.00013698,2]
[424423936,1780871440000,-500.0,0.00013698,2]
[424423935,1780871440000,-500.0,0.00013698,2]
[424423938,1780871440000,-500.0,0.00013698,2]
[424423942,1780871440000,-500.0,0.00013698,2]
[424423937,1780871440000,-500.0,0.00013698,2]
[424423940,1780871440000,-500.0,0.00013698,2]
[424423941,1780871440000,-500.0,0.00013698,2]
[424423939,1780871440000,-500.0,0.00013698,2]
[424423944,1780871440000,-500.0,0.00013698,2]
[424423943,1780871440000,-500.0,0.00013698,2]
[424423947,1780871440000,-500.0,0.00013698,2]
[424423945,1780871440000,-500.0,0.00013698,2]
[424423946,1780871440000,-500.0,0.00013698,2]
[424423949,1780871440000,-500.0,0.00013698,2]
[424423952,1780871440000,-916.51,0.00013698,2]
[424423950,1780871440000,-500.0,0.00013698,2]
[424423951,1780871440000,-500.0,0.00013698,2]
[424423982,1780871440000,-500.0,0.00013698,2]
[424423933,1780871440000,-500.0,0.00013698,2]
[424423987,1780871440000,-500.0,0.00013698,2]
[424424022,1780871440000,-500.0,0.00013699,2]
[424424024,1780871440000,-500.0,0.00013699,2]
[424424023,1780871440000,-500.0,0.00013699,2]
[424424026,1780871440000,-500.0,0.00013699,2]
[424424025,1780871440000,-500.0,0.00013699,2]
[424424028,1780871440000,-500.0,0.00013699,2]
[424424027,1780871440000,-348.23649464,0.00013699,2]
[424424030,1780871440000,-489.7500251,0.00013703,2]
[424424029,1780871440000,-150.0,0.00013702,2]
[424424031,1780871440000,-150.0,0.0001376,2]
[424424032,1780871440000,-150.0,0.00013787,2]
[424424033,1780871440000,-151.0,0.00013791,2]
[424424034,1780871440000,-166.66,0.00013836,2]
[424424036,1780871440000,-150.0,0.00013887,2]
[424424035,1780871440000,-150.0,0.00013862,2]
[424424038,1780871440000,-150.0,0.00013916,2]
[424424037,1780871440000,-150.0,0.00013896,2]
[424424039,1780871440000,-166.66,0.00013973,2]
[424424040,1780871440000,-150.0,0.00013987,2]
[424424041,1780871440000,-150.0,0.00013987,2]
[424424042,1780871440000,-250.0,0.00014,2]
[424424043,1780871440000,-2000.0,0.00014,2]
[424424044,1780871440000,-2321.0,0.00014,2]